[Event "Titled Tuesday Blitz March 28 Early 2023"]
[White "Leve, Nitai"]
[Black "Harsha Bharathakoti"]
[WhiteFideId "2006898"]
[BlackFideId "5078776"]
[WhiteElo "2144"]
[BlackElo "2481"]
[Result "0-1"]
[Round "02"]
[TimeControl "180+2"]
[Date "2023.03.28"]
[WhiteClock "0:01:07"]
[BlackClock "0:01:36"]

1. e4 {[%clk 0:02:56]}  g6 {[%clk 0:02:59]} 2. d4 {[%clk 0:02:54]}  Bg7 {[%clk 0:02:59]} 3. Nc3 {[%clk 0:02:55]}  d6 {[%clk 0:03:00]} 4. f4 {[%clk 0:02:55]}  a6 {[%clk 0:03:00]} 5. a4 {[%clk 0:02:55]}  Nf6 {[%clk 0:02:55]} 6. Nf3 {[%clk 0:02:41]}  Nc6 {[%clk 0:02:51]} 7. h3 {[%clk 0:02:39]}  O-O {[%clk 0:02:42]} 8. Bd3 {[%clk 0:02:34]}  e5 {[%clk 0:02:40]} 9. d5 {[%clk 0:02:31]}  Nb4 {[%clk 0:02:30]} 10. fxe5 {[%clk 0:02:26]}  dxe5 {[%clk 0:02:29]} 11. Bg5 {[%clk 0:02:21]}  Qd6 {[%clk 0:02:20]} 12. O-O {[%clk 0:02:15]}  c6 {[%clk 0:02:19]} 13. dxc6 {[%clk 0:01:41]}  Nxc6 {[%clk 0:02:05]} 14. Bc4 {[%clk 0:01:41]}  Qc5+ {[%clk 0:02:04]} 15. Kh1 {[%clk 0:01:38]}  Qxc4 {[%clk 0:02:03]} 16. Nxe5 {[%clk 0:01:33]}  Nxe5 {[%clk 0:02:02]} 17. Rxf6 {[%clk 0:01:31]}  Be6 {[%clk 0:01:53]} 18. Qd2 {[%clk 0:01:22]}  Rad8 {[%clk 0:01:37]} 19. Qf4 {[%clk 0:01:22]}  Nd7 {[%clk 0:01:38]} 20. Rf5 {[%clk 0:01:07]}  gxf5 {[%clk 0:01:36]} 21. Bxd8 {[%clk 0:01:07]}  Rxd8 {[%clk 0:01:36]} 0-1


[Site "https://www.chess.com"]

[Event "Titled Tuesday Blitz March 28 Early 2023"]
[White "Mendonca, Leon Luke"]
[Black "Tymrakiewicz, Rafal"]
[WhiteFideId "35028561"]
[BlackFideId "1108832"]
[WhiteElo "2464"]
[BlackElo "2151"]
[Result "1-0"]
[Round "02"]
[TimeControl "180+2"]
[Date "2023.03.28"]
[WhiteClock "0:00:02"]
[BlackClock "0:00:07"]

1. e4 {[%clk 0:03:00]}  Nf6 {[%clk 0:03:00]} 2. Nc3 {[%clk 0:02:59]}  d5 {[%clk 0:02:59]} 3. exd5 {[%clk 0:02:55]}  Nxd5 {[%clk 0:02:58]} 4. Nge2 {[%clk 0:02:56]}  Bg4 {[%clk 0:02:53]} 5. h3 {[%clk 0:02:50]}  Bh5 {[%clk 0:02:52]} 6. g4 {[%clk 0:02:49]}  Bg6 {[%clk 0:02:52]} 7. Bg2 {[%clk 0:02:47]}  c6 {[%clk 0:02:52]} 8. Nxd5 {[%clk 0:02:43]}  cxd5 {[%clk 0:02:52]} 9. Nf4 {[%clk 0:02:44]}  e6 {[%clk 0:02:50]} 10. h4 {[%clk 0:02:44]}  Bd6 {[%clk 0:02:45]} 11. d3 {[%clk 0:02:44]}  Qf6 {[%clk 0:02:29]} 12. Qf3 {[%clk 0:02:37]}  Nc6 {[%clk 0:02:13]} 13. Nxg6 {[%clk 0:02:02]}  Qxf3 {[%clk 0:02:03]} 14. Bxf3 {[%clk 0:02:03]}  hxg6 {[%clk 0:02:03]} 15. c3 {[%clk 0:02:02]}  Kd7 {[%clk 0:01:42]} 16. Bd2 {[%clk 0:01:51]}  Rac8 {[%clk 0:01:39]} 17. Kf1 {[%clk 0:01:48]}  b5 {[%clk 0:01:33]} 18. a3 {[%clk 0:01:37]}  Rc7 {[%clk 0:01:31]} 19. Kg2 {[%clk 0:01:35]}  a6 {[%clk 0:01:28]} 20. Be3 {[%clk 0:01:33]}  Rcc8 {[%clk 0:01:23]} 21. Rad1 {[%clk 0:01:22]}  Ke7 {[%clk 0:01:21]} 22. Bg5+ {[%clk 0:01:22]}  f6 {[%clk 0:01:15]} 23. Be3 {[%clk 0:01:21]}  Ne5 {[%clk 0:01:14]} 24. Be2 {[%clk 0:01:21]}  Nd7 {[%clk 0:01:12]} 25. Rh3 {[%clk 0:01:09]}  Bc5 {[%clk 0:01:12]} 26. Bd2 {[%clk 0:01:08]}  d4 {[%clk 0:01:10]} 27. c4 {[%clk 0:00:59]}  bxc4 {[%clk 0:00:35]} 28. dxc4 {[%clk 0:01:00]}  Ne5 {[%clk 0:00:35]} 29. b4 {[%clk 0:00:58]}  d3 {[%clk 0:00:35]} 30. Bxd3 {[%clk 0:00:49]}  Rhd8 {[%clk 0:00:32]} 31. Be2 {[%clk 0:00:31]}  Rd4 {[%clk 0:00:27]} 32. bxc5 {[%clk 0:00:23]}  Rcd8 {[%clk 0:00:27]} 33. Bc3 {[%clk 0:00:15]}  Rxd1 {[%clk 0:00:27]} 34. Bxd1 {[%clk 0:00:16]}  Rxd1 {[%clk 0:00:26]} 35. Bxe5 {[%clk 0:00:17]}  fxe5 {[%clk 0:00:26]} 36. Re3 {[%clk 0:00:15]}  Rd4 {[%clk 0:00:24]} 37. f3 {[%clk 0:00:11]}  Rxc4 {[%clk 0:00:22]} 38. Rxe5 {[%clk 0:00:12]}  Kf6 {[%clk 0:00:23]} 39. Re4 {[%clk 0:00:04]}  Rxc5 {[%clk 0:00:17]} 40. Kg3 {[%clk 0:00:05]}  Ra5 {[%clk 0:00:15]} 41. a4 {[%clk 0:00:03]}  Rc5 {[%clk 0:00:14]} 42. Rf4+ {[%clk 0:00:03]}  Ke7 {[%clk 0:00:14]} 43. Rb4 {[%clk 0:00:03]}  g5 {[%clk 0:00:08]} 44. h5 {[%clk 0:00:02]}  Kf6 {[%clk 0:00:08]} 45. Rb6 {[%clk 0:00:02]}  Ra5 {[%clk 0:00:08]} 46. Rb4 {[%clk 0:00:03]}  Rc5 {[%clk 0:00:08]} 47. Rd4 {[%clk 0:00:03]}  a5 {[%clk 0:00:09]} 48. Rd8 {[%clk 0:00:02]}  Rc4 {[%clk 0:00:08]} 49. Rf8+ {[%clk 0:00:02]}  Ke5 {[%clk 0:00:08]} 50. Rf7 {[%clk 0:00:02]}  Rxa4 {[%clk 0:00:08]} 51. Rxg7 {[%clk 0:00:03]}  Ra1 {[%clk 0:00:08]} 52. Rxg5+ {[%clk 0:00:03]}  Kf6 {[%clk 0:00:08]} 53. Rg6+ {[%clk 0:00:03]}  Kf7 {[%clk 0:00:09]} 54. Rh6 {[%clk 0:00:02]}  a4 {[%clk 0:00:07]} 55. Rh7+ {[%clk 0:00:03]}  Kf6 {[%clk 0:00:07]} 56. Ra7 {[%clk 0:00:03]}  a3 {[%clk 0:00:08]} 57. Kf4 {[%clk 0:00:02]}  a2 {[%clk 0:00:07]} 58. g5# {[%clk 0:00:02]} 1-0


[Site "https://www.chess.com"]

[Event "Titled Tuesday Blitz March 28 Early 2023"]
[White "Manukyan, Sargis A."]
[Black "Pniaczek, Marek"]
[WhiteFideId "13303970"]
[BlackFideId "21800421"]
[WhiteElo "2187"]
[BlackElo "2138"]
[Result "0-1"]
[Round "02"]
[TimeControl "180+2"]
[Date "2023.03.28"]
[WhiteClock "0:00:23"]
[BlackClock "0:00:08"]

1. d4 {[%clk 0:03:00]}  Nf6 {[%clk 0:02:59]} 2. c4 {[%clk 0:03:01]}  e6 {[%clk 0:02:59]} 3. Nc3 {[%clk 0:03:01]}  d5 {[%clk 0:02:59]} 4. Nf3 {[%clk 0:03:01]}  dxc4 {[%clk 0:02:59]} 5. e4 {[%clk 0:03:00]}  b5 {[%clk 0:02:59]} 6. e5 {[%clk 0:02:59]}  Nfd7 {[%clk 0:02:59]} 7. Nxb5 {[%clk 0:02:58]}  Nb6 {[%clk 0:02:59]} 8. Nc3 {[%clk 0:02:59]}  Nc6 {[%clk 0:02:49]} 9. Be3 {[%clk 0:02:58]}  Be7 {[%clk 0:02:48]} 10. Be2 {[%clk 0:02:56]}  Rb8 {[%clk 0:02:46]} 11. O-O {[%clk 0:02:57]}  O-O {[%clk 0:02:45]} 12. Nd2 {[%clk 0:02:52]}  Nxd4 {[%clk 0:02:40]} 13. Bxc4 {[%clk 0:02:41]}  Nxc4 {[%clk 0:02:27]} 14. Nxc4 {[%clk 0:02:42]}  c5 {[%clk 0:02:27]} 15. b3 {[%clk 0:02:40]}  Bb7 {[%clk 0:02:25]} 16. Qg4 {[%clk 0:02:33]}  Qc7 {[%clk 0:02:09]} 17. Bxd4 {[%clk 0:02:27]}  cxd4 {[%clk 0:02:09]} 18. Nb5 {[%clk 0:02:21]}  Qc5 {[%clk 0:02:01]} 19. Nxd4 {[%clk 0:02:21]}  Rfd8 {[%clk 0:02:00]} 20. Rfd1 {[%clk 0:02:13]}  Rbc8 {[%clk 0:01:44]} 21. h4 {[%clk 0:02:07]}  a5 {[%clk 0:01:34]} 22. h5 {[%clk 0:02:05]}  h6 {[%clk 0:01:35]} 23. Rac1 {[%clk 0:01:53]}  Bg5 {[%clk 0:01:31]} 24. Rb1 {[%clk 0:01:38]}  Ba6 {[%clk 0:01:25]} 25. Nd6 {[%clk 0:01:32]}  Rc7 {[%clk 0:01:21]} 26. Nxe6 {[%clk 0:01:28]}  fxe6 {[%clk 0:01:11]} 27. Qxe6+ {[%clk 0:01:29]}  Kh7 {[%clk 0:01:10]} 28. Ne8 {[%clk 0:00:43]}  Rxd1+ {[%clk 0:00:44]} 29. Rxd1 {[%clk 0:00:42]}  Re7 {[%clk 0:00:42]} 30. Qxa6 {[%clk 0:00:38]}  Qc2 {[%clk 0:00:37]} 31. Qg6+ {[%clk 0:00:29]}  Qxg6 {[%clk 0:00:35]} 32. hxg6+ {[%clk 0:00:30]}  Kxg6 {[%clk 0:00:36]} 33. Nd6 {[%clk 0:00:30]}  Rxe5 {[%clk 0:00:29]} 34. Nc4 {[%clk 0:00:30]}  Re2 {[%clk 0:00:26]} 35. a4 {[%clk 0:00:30]}  Be7 {[%clk 0:00:20]} 36. Kf1 {[%clk 0:00:25]}  Rc2 {[%clk 0:00:18]} 37. Rd2 {[%clk 0:00:17]}  Rc1+ {[%clk 0:00:16]} 38. Ke2 {[%clk 0:00:18]}  Bb4 {[%clk 0:00:17]} 39. Rd5 {[%clk 0:00:16]}  Rc2+ {[%clk 0:00:14]} 40. Ke3 {[%clk 0:00:16]}  Rc3+ {[%clk 0:00:15]} 41. Rd3 {[%clk 0:00:16]}  Rc2 {[%clk 0:00:13]} 42. Ne5+ {[%clk 0:00:11]}  Kf5 {[%clk 0:00:11]} 43. Nf3 {[%clk 0:00:11]}  Bc5+ {[%clk 0:00:11]} 44. Nd4+ {[%clk 0:00:12]}  Ke5 {[%clk 0:00:11]} 45. f4+ {[%clk 0:00:11]}  Kd5 {[%clk 0:00:11]} 46. g4 {[%clk 0:00:10]}  Rb2 {[%clk 0:00:09]} 47. f5 {[%clk 0:00:10]}  Ra2 {[%clk 0:00:08]} 48. Rd1 {[%clk 0:00:09]}  Rb2 {[%clk 0:00:08]} 49. Rd3 {[%clk 0:00:09]}  Rb1 {[%clk 0:00:06]} 50. Rd2 {[%clk 0:00:09]}  Rxb3+ {[%clk 0:00:06]} 51. Rd3 {[%clk 0:00:08]}  Bxd4+ {[%clk 0:00:05]} 52. Ke2 {[%clk 0:00:08]}  Rxd3 {[%clk 0:00:06]} 53. Kxd3 {[%clk 0:00:09]}  Bf6 {[%clk 0:00:06]} 54. Ke2 {[%clk 0:00:10]}  Kc4 {[%clk 0:00:06]} 55. Kf3 {[%clk 0:00:11]}  Kb4 {[%clk 0:00:06]} 56. Ke4 {[%clk 0:00:12]}  Kxa4 {[%clk 0:00:07]} 57. Kd3 {[%clk 0:00:12]}  Kb4 {[%clk 0:00:07]} 58. Ke4 {[%clk 0:00:13]}  a4 {[%clk 0:00:07]} 59. Kd3 {[%clk 0:00:14]}  a3 {[%clk 0:00:08]} 60. Kc2 {[%clk 0:00:15]}  a2 {[%clk 0:00:08]} 61. Kd3 {[%clk 0:00:15]}  a1=Q {[%clk 0:00:08]} 62. Ke4 {[%clk 0:00:16]}  Qd4+ {[%clk 0:00:08]} 63. Kf3 {[%clk 0:00:16]}  Qd3+ {[%clk 0:00:09]} 64. Kf4 {[%clk 0:00:15]}  Bg5+ {[%clk 0:00:09]} 65. Ke5 {[%clk 0:00:16]}  Qe3+ {[%clk 0:00:09]} 66. Kd5 {[%clk 0:00:16]}  Qf3+ {[%clk 0:00:09]} 67. Ke6 {[%clk 0:00:17]}  Qxg4 {[%clk 0:00:09]} 68. Kf7 {[%clk 0:00:17]}  Qxf5+ {[%clk 0:00:09]} 69. Kg8 {[%clk 0:00:18]}  Qf8+ {[%clk 0:00:08]} 70. Kh7 {[%clk 0:00:18]}  h5 {[%clk 0:00:07]} 71. Kg6 {[%clk 0:00:19]}  h4 {[%clk 0:00:08]} 72. Kh5 {[%clk 0:00:20]}  h3 {[%clk 0:00:08]} 73. Kg6 {[%clk 0:00:21]}  h2 {[%clk 0:00:07]} 74. Kh5 {[%clk 0:00:21]}  g6+ {[%clk 0:00:08]} 75. Kxg6 {[%clk 0:00:22]}  Qf6+ {[%clk 0:00:08]} 76. Kh7 {[%clk 0:00:22]}  h1=Q+ {[%clk 0:00:08]} 77. Kg8 {[%clk 0:00:23]}  Qhh8# {[%clk 0:00:08]} 0-1


[Site "https://www.chess.com"]

[Event "Titled Tuesday Blitz March 28 Early 2023"]
[White "Zhao, Jun"]
[Black "Vedder, Richard"]
[WhiteFideId "8602522"]
[BlackFideId "1004166"]
[WhiteElo "2547"]
[BlackElo "2168"]
[Result "1-0"]
[Round "02"]
[TimeControl "180+2"]
[Date "2023.03.28"]
[WhiteClock "0:02:40"]
[BlackClock "0:02:41"]

1. c4 {[%clk 0:03:00]}  e5 {[%clk 0:02:59]} 2. Nc3 {[%clk 0:03:00]}  Nf6 {[%clk 0:02:59]} 3. g3 {[%clk 0:03:01]}  c6 {[%clk 0:02:59]} 4. d4 {[%clk 0:03:00]}  d6 {[%clk 0:02:58]} 5. Nf3 {[%clk 0:02:58]}  Nbd7 {[%clk 0:02:58]} 6. Bg2 {[%clk 0:02:58]}  g6 {[%clk 0:02:59]} 7. O-O {[%clk 0:02:58]}  Bg7 {[%clk 0:02:59]} 8. e4 {[%clk 0:02:58]}  O-O {[%clk 0:02:57]} 9. Qc2 {[%clk 0:02:59]}  Qc7 {[%clk 0:02:51]} 10. b3 {[%clk 0:02:58]}  a5 {[%clk 0:02:50]} 11. Ba3 {[%clk 0:02:55]}  Re8 {[%clk 0:02:49]} 12. Rad1 {[%clk 0:02:54]}  exd4 {[%clk 0:02:47]} 13. Nxd4 {[%clk 0:02:53]}  Nc5 {[%clk 0:02:47]} 14. Ndb5 {[%clk 0:02:45]}  cxb5 {[%clk 0:02:43]} 15. Nxb5 {[%clk 0:02:46]}  Qb8 {[%clk 0:02:42]} 16. Nxd6 {[%clk 0:02:46]}  Ne6 {[%clk 0:02:41]} 17. e5 {[%clk 0:02:40]} 1-0


[Site "https://www.chess.com"]

[Event "Titled Tuesday Blitz March 28 Early 2023"]
[White "Hamitevici, Vladimir"]
[Black "Topalov, Aleksandar"]
[WhiteFideId "13902393"]
[BlackFideId "925659"]
[WhiteElo "2401"]
[BlackElo "2151"]
[Result "1-0"]
[Round "02"]
[TimeControl "180+2"]
[Date "2023.03.28"]
[WhiteClock "0:00:07"]
[BlackClock "0:00:01"]

1. b3 {[%clk 0:03:00]}  Nf6 {[%clk 0:02:58]} 2. Bb2 {[%clk 0:02:59]}  g6 {[%clk 0:02:58]} 3. g3 {[%clk 0:02:59]}  Bg7 {[%clk 0:02:58]} 4. Bg2 {[%clk 0:02:59]}  O-O {[%clk 0:02:59]} 5. c4 {[%clk 0:02:56]}  c5 {[%clk 0:02:59]} 6. Nf3 {[%clk 0:02:55]}  Nc6 {[%clk 0:02:58]} 7. O-O {[%clk 0:02:51]}  d6 {[%clk 0:02:58]} 8. e3 {[%clk 0:02:50]}  a6 {[%clk 0:02:57]} 9. Qe2 {[%clk 0:02:50]}  Rb8 {[%clk 0:02:57]} 10. d3 {[%clk 0:02:49]}  b5 {[%clk 0:02:56]} 11. Nc3 {[%clk 0:02:50]}  bxc4 {[%clk 0:02:54]} 12. dxc4 {[%clk 0:02:50]}  Bf5 {[%clk 0:02:48]} 13. Nh4 {[%clk 0:02:50]}  Bd7 {[%clk 0:02:45]} 14. Rfd1 {[%clk 0:02:40]}  Nb4 {[%clk 0:02:43]} 15. h3 {[%clk 0:02:34]}  Bc6 {[%clk 0:02:38]} 16. e4 {[%clk 0:02:34]}  Bd7 {[%clk 0:02:28]} 17. f4 {[%clk 0:02:23]}  Qc7 {[%clk 0:02:23]} 18. Qf2 {[%clk 0:01:57]}  a5 {[%clk 0:02:13]} 19. e5 {[%clk 0:01:44]}  dxe5 {[%clk 0:02:09]} 20. fxe5 {[%clk 0:01:45]}  Qxe5 {[%clk 0:01:38]} 21. Na4 {[%clk 0:01:00]}  Qc7 {[%clk 0:01:26]} 22. Qxc5 {[%clk 0:00:55]}  Qxc5+ {[%clk 0:01:04]} 23. Nxc5 {[%clk 0:00:56]}  Bc6 {[%clk 0:01:04]} 24. a3 {[%clk 0:00:40]}  Bxg2 {[%clk 0:01:02]} 25. axb4 {[%clk 0:00:40]}  Ba8 {[%clk 0:00:49]} 26. b5 {[%clk 0:00:30]}  Rfc8 {[%clk 0:00:39]} 27. Na6 {[%clk 0:00:29]}  Rb6 {[%clk 0:00:39]} 28. Rxa5 {[%clk 0:00:27]}  h6 {[%clk 0:00:31]} 29. c5 {[%clk 0:00:20]}  Re6 {[%clk 0:00:25]} 30. c6 {[%clk 0:00:21]}  g5 {[%clk 0:00:25]} 31. Nf5 {[%clk 0:00:20]}  Bxc6 {[%clk 0:00:12]} 32. bxc6 {[%clk 0:00:18]}  Rcxc6 {[%clk 0:00:13]} 33. Nb4 {[%clk 0:00:17]}  Rb6 {[%clk 0:00:13]} 34. Bxf6 {[%clk 0:00:15]}  Bxf6 {[%clk 0:00:10]} 35. Nd5 {[%clk 0:00:15]}  Rxb3 {[%clk 0:00:09]} 36. Nxf6+ {[%clk 0:00:13]}  Rxf6 {[%clk 0:00:08]} 37. Rd8+ {[%clk 0:00:11]}  Kh7 {[%clk 0:00:08]} 38. g4 {[%clk 0:00:11]}  Rxh3 {[%clk 0:00:07]} 39. Raa8 {[%clk 0:00:11]}  Rxf5 {[%clk 0:00:02]} 40. gxf5 {[%clk 0:00:12]}  Kg7 {[%clk 0:00:02]} 41. Ra6 {[%clk 0:00:07]}  Rf3 {[%clk 0:00:01]} 42. Rd5 {[%clk 0:00:07]} 1-0


[Site "https://www.chess.com"]

[Event "Titled Tuesday Blitz March 28 Early 2023"]
[White "Itgelt, Khuyagtsogt"]
[Black "Senft, Sean"]
[WhiteFideId "4902912"]
[BlackFideId "2044960"]
[WhiteElo "2227"]
[BlackElo "1989"]
[Result "0-1"]
[Round "02"]
[TimeControl "180+2"]
[Date "2023.03.28"]
[WhiteClock "0:00:04"]
[BlackClock "0:00:17"]

1. d4 {[%clk 0:02:24]}  d5 {[%clk 0:02:59]} 2. c4 {[%clk 0:02:24]}  c6 {[%clk 0:03:00]} 3. Nf3 {[%clk 0:02:24]}  Nf6 {[%clk 0:03:00]} 4. g3 {[%clk 0:02:25]}  Bf5 {[%clk 0:02:59]} 5. Nc3 {[%clk 0:02:26]}  e6 {[%clk 0:03:00]} 6. Nh4 {[%clk 0:02:26]}  Be4 {[%clk 0:03:00]} 7. f3 {[%clk 0:02:26]}  Bg6 {[%clk 0:03:00]} 8. Qb3 {[%clk 0:02:27]}  Qc7 {[%clk 0:02:59]} 9. Bf4 {[%clk 0:02:26]}  Qc8 {[%clk 0:02:54]} 10. e4 {[%clk 0:02:17]}  Be7 {[%clk 0:02:50]} 11. O-O-O {[%clk 0:01:35]}  dxc4 {[%clk 0:02:42]} 12. Bxc4 {[%clk 0:01:34]}  O-O {[%clk 0:02:42]} 13. Nxg6 {[%clk 0:01:32]}  hxg6 {[%clk 0:02:42]} 14. g4 {[%clk 0:01:01]}  b5 {[%clk 0:02:37]} 15. Bd3 {[%clk 0:00:59]}  a5 {[%clk 0:02:37]} 16. h4 {[%clk 0:00:48]}  a4 {[%clk 0:02:34]} 17. Qc2 {[%clk 0:00:49]}  b4 {[%clk 0:02:33]} 18. Nb1 {[%clk 0:00:46]}  b3 {[%clk 0:02:26]} 19. axb3 {[%clk 0:00:45]}  axb3 {[%clk 0:02:26]} 20. Qh2 {[%clk 0:00:44]}  c5 {[%clk 0:01:34]} 21. h5 {[%clk 0:00:29]}  cxd4+ {[%clk 0:01:31]} 22. Kd2 {[%clk 0:00:30]}  g5 {[%clk 0:01:28]} 23. h6 {[%clk 0:00:23]}  g6 {[%clk 0:01:20]} 24. h7+ {[%clk 0:00:23]}  Kh8 {[%clk 0:01:18]} 25. Be5 {[%clk 0:00:18]}  Nd7 {[%clk 0:01:16]} 26. Bxd4 {[%clk 0:00:16]}  e5 {[%clk 0:01:10]} 27. Bc3 {[%clk 0:00:15]}  Rd8 {[%clk 0:01:07]} 28. Ke2 {[%clk 0:00:14]}  Qc5 {[%clk 0:00:39]} 29. Nd2 {[%clk 0:00:08]}  Rab8 {[%clk 0:00:36]} 30. Nc4 {[%clk 0:00:08]}  Rb5 {[%clk 0:00:30]} 31. Ne3 {[%clk 0:00:05]}  Rb6 {[%clk 0:00:27]} 32. Ra1 {[%clk 0:00:05]}  Re8 {[%clk 0:00:23]} 33. Ra5 {[%clk 0:00:05]}  Qc7 {[%clk 0:00:21]} 34. Nc4 {[%clk 0:00:04]}  Re6 {[%clk 0:00:21]} 35. Rha1 {[%clk 0:00:02]}  Bc5 {[%clk 0:00:19]} 36. Bd2 {[%clk 0:00:02]}  Nb6 {[%clk 0:00:17]} 37. Nxb6 {[%clk 0:00:02]}  Bxb6 {[%clk 0:00:18]} 38. Ra6 {[%clk 0:00:01]}  Qc5 {[%clk 0:00:18]} 39. Qg2 {[%clk 0:00:01]}  Rd6 {[%clk 0:00:17]} 40. Rxb6 {[%clk 0:00:01]}  Qxb6 {[%clk 0:00:16]} 41. Bc3 {[%clk 0:00:02]}  Red8 {[%clk 0:00:16]} 42. Rd1 {[%clk 0:00:02]}  Qb7 {[%clk 0:00:16]} 43. Rd2 {[%clk 0:00:03]}  Qd7 {[%clk 0:00:17]} 44. Qg3 {[%clk 0:00:01]}  Rxd3 {[%clk 0:00:17]} 45. Qxe5 {[%clk 0:00:01]}  Rxd2+ {[%clk 0:00:17]} 46. Bxd2 {[%clk 0:00:02]}  Qxd2+ {[%clk 0:00:17]} 47. Kf1 {[%clk 0:00:03]}  Qd1+ {[%clk 0:00:17]} 48. Kg2 {[%clk 0:00:04]}  Rd2+ {[%clk 0:00:17]} 49. Kh3 {[%clk 0:00:04]}  Qh1+ {[%clk 0:00:17]} 0-1


[Site "https://www.chess.com"]

[Event "Titled Tuesday Blitz March 28 Early 2023"]
[White "Lopez, Nelson M, Ii"]
[Black "Vaibhav Jayant Raut"]
[WhiteFideId "2027895"]
[BlackFideId "5089034"]
[WhiteElo "2404"]
[BlackElo "2156"]
[Result "0-1"]
[Round "02"]
[TimeControl "180+2"]
[Date "2023.03.28"]
[WhiteClock "0:00:19"]
[BlackClock "0:00:09"]

1. e4 {[%clk 0:03:00]}  c5 {[%clk 0:02:56]} 2. Nf3 {[%clk 0:03:01]}  Nc6 {[%clk 0:02:56]} 3. Bb5 {[%clk 0:03:01]}  g6 {[%clk 0:02:56]} 4. O-O {[%clk 0:03:01]}  Bg7 {[%clk 0:02:56]} 5. Nc3 {[%clk 0:03:01]}  Nf6 {[%clk 0:02:55]} 6. e5 {[%clk 0:03:02]}  Ng4 {[%clk 0:02:54]} 7. Bxc6 {[%clk 0:03:03]}  dxc6 {[%clk 0:02:54]} 8. Re1 {[%clk 0:03:04]}  O-O {[%clk 0:02:54]} 9. h3 {[%clk 0:03:04]}  Nh6 {[%clk 0:02:54]} 10. d3 {[%clk 0:03:05]}  Nf5 {[%clk 0:02:54]} 11. Bf4 {[%clk 0:03:06]}  Be6 {[%clk 0:02:48]} 12. Ng5 {[%clk 0:02:55]}  h6 {[%clk 0:02:43]} 13. Nxe6 {[%clk 0:02:54]}  fxe6 {[%clk 0:02:44]} 14. Qg4 {[%clk 0:02:45]}  Kh7 {[%clk 0:02:42]} 15. Ne4 {[%clk 0:02:41]}  b6 {[%clk 0:02:38]} 16. Ng3 {[%clk 0:02:41]}  Qd5 {[%clk 0:02:30]} 17. b3 {[%clk 0:02:01]}  Rf7 {[%clk 0:02:24]} 18. h4 {[%clk 0:01:25]}  Nxg3 {[%clk 0:02:17]} 19. Bxg3 {[%clk 0:01:24]}  Rf5 {[%clk 0:02:15]} 20. f4 {[%clk 0:01:14]}  Raf8 {[%clk 0:02:03]} 21. Kh2 {[%clk 0:01:12]}  h5 {[%clk 0:01:39]} 22. Qe2 {[%clk 0:01:07]}  Bh6 {[%clk 0:01:36]} 23. Rf1 {[%clk 0:00:48]}  Bxf4 {[%clk 0:01:31]} 24. Bxf4 {[%clk 0:00:48]}  Rxf4 {[%clk 0:01:32]} 25. g3 {[%clk 0:00:42]}  R4f5 {[%clk 0:01:25]} 26. Rae1 {[%clk 0:00:37]}  Kg7 {[%clk 0:01:20]} 27. Rxf5 {[%clk 0:00:24]}  Rxf5 {[%clk 0:01:20]} 28. Qe3 {[%clk 0:00:14]}  a5 {[%clk 0:00:55]} 29. a4 {[%clk 0:00:13]}  b5 {[%clk 0:00:55]} 30. axb5 {[%clk 0:00:14]}  cxb5 {[%clk 0:00:56]} 31. Re2 {[%clk 0:00:14]}  Rf1 {[%clk 0:00:50]} 32. Rg2 {[%clk 0:00:14]}  a4 {[%clk 0:00:42]} 33. bxa4 {[%clk 0:00:15]}  bxa4 {[%clk 0:00:43]} 34. Qg5 {[%clk 0:00:15]}  Rf7 {[%clk 0:00:31]} 35. g4 {[%clk 0:00:16]}  Qd4 {[%clk 0:00:13]} 36. gxh5 {[%clk 0:00:15]}  Qf4+ {[%clk 0:00:13]} 37. Qxf4 {[%clk 0:00:15]}  Rxf4 {[%clk 0:00:14]} 38. Rxg6+ {[%clk 0:00:16]}  Kf7 {[%clk 0:00:14]} 39. Rg1 {[%clk 0:00:15]}  Rxh4+ {[%clk 0:00:14]} 40. Kg3 {[%clk 0:00:15]}  Rxh5 {[%clk 0:00:15]} 41. Kf4 {[%clk 0:00:15]}  Rh2 {[%clk 0:00:14]} 42. c4 {[%clk 0:00:15]}  a3 {[%clk 0:00:14]} 43. Ra1 {[%clk 0:00:15]}  a2 {[%clk 0:00:14]} 44. Ke4 {[%clk 0:00:16]}  Kg6 {[%clk 0:00:13]} 45. d4 {[%clk 0:00:16]}  Rh4+ {[%clk 0:00:13]} 46. Ke3 {[%clk 0:00:17]}  Rxd4 {[%clk 0:00:13]} 47. Rxa2 {[%clk 0:00:17]}  Rxc4 {[%clk 0:00:13]} 48. Ra7 {[%clk 0:00:17]}  Kf5 {[%clk 0:00:12]} 49. Kd3 {[%clk 0:00:17]}  Rd4+ {[%clk 0:00:11]} 50. Kc3 {[%clk 0:00:18]}  Kxe5 {[%clk 0:00:10]} 51. Rxe7 {[%clk 0:00:19]}  Rh4 {[%clk 0:00:10]} 52. Re8 {[%clk 0:00:19]}  Kd5 {[%clk 0:00:09]} 53. Rd8+ {[%clk 0:00:19]}  Kc6 {[%clk 0:00:09]} 54. Rc8+ {[%clk 0:00:19]}  Kd6 {[%clk 0:00:10]} 55. Rd8+ {[%clk 0:00:20]}  Ke5 {[%clk 0:00:10]} 56. Rc8 {[%clk 0:00:20]}  c4 {[%clk 0:00:11]} 57. Rxc4 {[%clk 0:00:17]}  Rxc4+ {[%clk 0:00:10]} 58. Kxc4 {[%clk 0:00:18]}  Kf4 {[%clk 0:00:10]} 59. Kd3 {[%clk 0:00:18]}  e5 {[%clk 0:00:10]} 60. Ke2 {[%clk 0:00:19]}  Ke4 {[%clk 0:00:11]} 61. Kd2 {[%clk 0:00:19]}  Kf3 {[%clk 0:00:11]} 62. Ke1 {[%clk 0:00:17]}  Ke3 {[%clk 0:00:09]} 63. Kf1 {[%clk 0:00:18]}  Kd2 {[%clk 0:00:09]} 64. Kf2 {[%clk 0:00:19]}  e4 {[%clk 0:00:09]} 0-1


[Site "https://www.chess.com"]

[Event "Titled Tuesday Blitz March 28 Early 2023"]
[White "Ramirez Vido, Robert Yorisan"]
[Black "Gontcharov, Vladislav"]
[WhiteFideId "3513823"]
[BlackFideId "4123492"]
[WhiteElo "2402"]
[BlackElo "2470"]
[Result "0-1"]
[Round "02"]
[TimeControl "180+2"]
[Date "2023.03.28"]
[WhiteClock "0:00:16"]
[BlackClock "0:00:15"]

1. f4 {[%clk 0:02:53]}  Nf6 {[%clk 0:02:57]} 2. Nf3 {[%clk 0:02:52]}  c5 {[%clk 0:02:55]} 3. g3 {[%clk 0:02:52]}  Nc6 {[%clk 0:02:55]} 4. Bg2 {[%clk 0:02:52]}  d6 {[%clk 0:02:55]} 5. d3 {[%clk 0:02:49]}  e5 {[%clk 0:02:54]} 6. fxe5 {[%clk 0:02:47]}  dxe5 {[%clk 0:02:54]} 7. O-O {[%clk 0:02:42]}  h6 {[%clk 0:02:51]} 8. Be3 {[%clk 0:02:38]}  Be7 {[%clk 0:02:46]} 9. c3 {[%clk 0:02:31]}  O-O {[%clk 0:02:37]} 10. Kh1 {[%clk 0:02:19]}  e4 {[%clk 0:02:25]} 11. Ne1 {[%clk 0:02:15]}  exd3 {[%clk 0:02:11]} 12. Nxd3 {[%clk 0:02:11]}  c4 {[%clk 0:01:48]} 13. Nf4 {[%clk 0:02:02]}  Qc7 {[%clk 0:01:43]} 14. Na3 {[%clk 0:02:00]}  Ne5 {[%clk 0:01:30]} 15. Nb5 {[%clk 0:01:47]}  Qa5 {[%clk 0:01:27]} 16. Nd4 {[%clk 0:01:44]}  Rd8 {[%clk 0:01:22]} 17. Qc2 {[%clk 0:01:42]}  Rb8 {[%clk 0:01:08]} 18. a3 {[%clk 0:01:41]}  Bd7 {[%clk 0:01:05]} 19. Nf5 {[%clk 0:01:36]}  Bf8 {[%clk 0:01:00]} 20. Bd4 {[%clk 0:01:35]}  Neg4 {[%clk 0:00:46]} 21. h3 {[%clk 0:01:28]}  Bxf5 {[%clk 0:00:44]} 22. Qc1 {[%clk 0:01:22]}  Ne5 {[%clk 0:00:40]} 23. Nh5 {[%clk 0:01:18]}  Bg6 {[%clk 0:00:33]} 24. Nxf6+ {[%clk 0:00:57]}  gxf6 {[%clk 0:00:33]} 25. Rxf6 {[%clk 0:00:58]}  Bg7 {[%clk 0:00:33]} 26. Qf4 {[%clk 0:00:49]}  Nc6 {[%clk 0:00:24]} 27. Bxc6 {[%clk 0:00:39]}  bxc6 {[%clk 0:00:24]} 28. Rf1 {[%clk 0:00:36]}  Rb7 {[%clk 0:00:17]} 29. Rxg6 {[%clk 0:00:23]}  fxg6 {[%clk 0:00:17]} 30. Bxg7 {[%clk 0:00:23]}  Rxg7 {[%clk 0:00:17]} 31. Qxh6 {[%clk 0:00:22]}  Qd5+ {[%clk 0:00:16]} 32. Kh2 {[%clk 0:00:22]}  Rf8 {[%clk 0:00:16]} 33. Rxf8+ {[%clk 0:00:20]}  Kxf8 {[%clk 0:00:16]} 34. Qf4+ {[%clk 0:00:20]}  Kg8 {[%clk 0:00:15]} 35. Qb8+ {[%clk 0:00:16]}  Kh7 {[%clk 0:00:15]} 36. Qf4 {[%clk 0:00:16]}  Rf7 {[%clk 0:00:15]} 37. Qh4+ {[%clk 0:00:16]}  Kg7 {[%clk 0:00:15]} 0-1


[Site "https://www.chess.com"]